bitfinex/quotes_ETHUSD_20260225
["timestamp","ask_amount","ask_price","bid_price","bid_amount"]
[1771984955788,1.30018169,1922.9,1922.0,2.03160944]
[1771984957807,3.7646452,1922.8,1921.9,1.30074629]
[1771984958012,3.7646452,1922.6,1921.8,2.03260944]
[1771984958183,3.7646452,1922.4,1921.8,1.30185774]
[1771984958378,3.7646452,1922.6,1921.8,1.30185774]
[1771984958578,0.93630713,1922.8,1921.8,0.001]
[1771984958579,3.7646452,1922.2,1921.8,0.001]
[1771984959303,3.7646452,1922.5,1921.8,1.301846]
[1771984960005,1.30036444,1922.6,1921.8,2.03260944]
[1771984960706,9.89757136,1922.9,1921.8,2.03260944]
[1771984960707,5.20085337,1922.8,1921.8,2.03260944]
[1771984961343,11.2939356,1922.0,1921.6,0.001]
[1771984961629,3.7646452,1922.0,1921.5,0.001]
[1771984961836,3.7646452,1922.0,1921.3,0.001]
[1771984961978,3.7646452,1921.8,1921.3,0.001]
[1771984962174,3.7646452,1922.0,1921.3,0.001]
[1771984963517,5.27431621,1922.0,1921.1,1.6110756]
[1771984964283,5.27431621,1922.0,1920.9,1.30242057]
[1771984964284,1.30079608,1921.9,1920.9,1.30242057]
[1771984964716,5.27431621,1921.7,1920.9,0.001]
[1771984965287,1.30079608,1921.9,1921.6,0.001]
[1771984965488,1.30079608,1921.9,1921.0,2.03160944]
[1771984966086,1.30079608,1921.9,1921.1,3.33294721]
[1771984966292,1.30079608,1921.9,1921.1,2.03160944]
[1771984966715,1.30079608,1921.9,1921.0,1.30135275]
[1771984967090,1.30079608,1921.9,1920.9,1.30240584]
[1771984968220,1.30079608,1921.9,1920.9,1.30242045]
[1771984968930,1.30079608,1921.9,1921.0,2.03160944]
[1771984970011,6.5750651,1922.0,1921.0,2.03160944]
[1771984970221,6.5750651,1922.0,1921.1,3.33294721]
[1771984970398,6.5750651,1922.0,1921.2,2.03160944]
[1771984971326,1.41946211,1922.4,1921.2,2.03160944]
[1771984971327,5.20199416,1922.4,1921.2,2.03160944]
[1771984971508,5.27431621,1922.2,1921.2,2.03160944]
[1771984971708,5.20199416,1922.4,1921.2,2.03160944]
[1771984972511,1.30018722,1922.8,1921.4,2.03160944]
[1771984972809,5.27431621,1922.7,1921.4,2.03160944]
[1771984973013,5.27431621,1922.4,1921.4,2.03160944]
[1771984973834,5.27431621,1922.7,1921.4,2.03160944]
[1771984973997,1.30018722,1922.8,1921.4,2.03160944]
[1771984974406,5.20264476,1922.9,1921.6,2.03160944]
[1771984975331,5.27431621,1922.6,1921.6,2.03160944]
[1771984976630,1.30039011,1922.5,1921.6,3.33256456]
[1771984977131,1.30039011,1922.5,1921.6,3.33260262]
[1771984977706,1.30239011,1922.5,1921.6,3.33260262]
[1771984978401,1.30239011,1922.5,1921.7,1.90762362]
[1771984978631,1.30239011,1922.5,1921.8,3.20848739]
[1771984978836,1.30239011,1922.5,1921.9,1.90762362]
[1771984979634,1.30239011,1922.5,1921.7,1.30088495]
[1771984980161,5.27431621,1922.4,1921.6,1.90762362]
[1771984980322,18.42480398,1922.5,1921.3,1.90762362]
[1771984980510,5.27431621,1922.2,1921.3,1.90762362]
[1771984980711,1.30066073,1922.1,1921.3,1.90762362]
[1771984981011,5.27431621,1921.9,1921.1,0.001]
[1771984981333,5.27431621,1921.9,1921.1,1.30233312]
[1771984981530,5.27431621,1921.9,1921.1,0.001]
[1771984981832,5.27431621,1921.9,1921.1,1.30233272]
[1771984982035,5.27431621,1921.9,1921.1,3.20995634]
[1771984982238,5.27431621,1921.9,1921.1,1.90862362]
[1771984982745,5.27431621,1921.9,1921.1,0.001]
[1771984982959,5.27431621,1921.6,1921.1,0.001]
[1771984983783,1.28954813,1922.0,1921.1,0.001]
[1771984983921,1.30059307,1922.2,1921.1,1.90862362]
[1771984984275,8.87182449,1922.4,1921.3,1.90762362]
[1771984984276,1.30045776,1922.4,1921.3,1.90762362]
[1771984984759,1.30045776,1922.4,1921.4,1.30113458]
[1771984984973,0.002,1922.5,1921.5,1.90762362]
[1771984985260,1.30239755,1922.5,1921.5,1.90762362]
[1771984985625,0.002,1922.5,1921.5,1.90762362]
[1771984986125,0.002,1922.5,1921.6,1.90762362]
[1771984986349,1.30240872,1922.5,1921.6,1.90762362]
[1771984986722,0.002,1922.5,1921.6,1.90762362]
[1771984986918,0.002,1922.5,1921.8,1.90762362]
[1771984988896,1.30218722,1922.8,1921.8,1.90762362]
[1771984988897,0.002,1922.8,1922.1,1.90762362]
[1771984989101,0.002,1922.8,1922.3,1.90762362]
[1771984989446,0.002,1923.0,1922.6,1.90762362]
[1771984990050,0.002,1923.2,1922.6,1.90762362]
[1771984990371,0.002,1923.2,1922.7,1.90762362]
[1771984990958,0.002,1923.2,1922.8,1.30018722]
[1771984991157,0.002,1923.2,1922.8,3.20781084]
[1771984991953,0.002,1923.2,1922.9,1.90762362]
[1771984992162,1e-08,1923.5,1923.2,1.90762362]
[1771984992362,1e-08,1923.5,1923.3,1.90762362]
[1771984992547,1.29897121,1924.6,1923.3,1.90762362]
[1771984992756,1.29897121,1924.6,1923.6,1.90762362]
[1771984993102,1.29897121,1924.6,1923.7,1.29957893]
[1771984993257,1.29897121,1924.6,1923.7,3.20720255]
[1771984993451,1.29897121,1924.6,1923.8,1.90762362]
[1771984994660,6.45073359,1925.3,1923.8,1.90762362]
[1771984994959,1.29876876,1924.9,1923.9,3.20706745]
[1771984995571,5.27431621,1924.7,1923.9,1.90762362]
[1771984995890,5.27431621,1924.7,1923.6,1.90762362]
[1771984995891,6.5275716,1924.7,1923.6,1.90762362]
[1771984996060,1.29876876,1924.9,1923.3,1.90762362]
[1771984996061,5.27431621,1924.4,1923.3,1.90762362]
[1771984997071,1.29917372,1924.3,1923.3,1.90762362]
[1771984997270,1.29917372,1924.3,1923.3,3.20746272]
[1771984997774,1.29917372,1924.3,1923.3,1.90762362]
[1771984998417,1.24382503,1924.0,1922.9,1.90762362]
[1771984998727,1.29917372,1924.3,1923.0,1.90762362]
[1771984999215,5.1966949,1924.4,1923.2,1.90762362]
[1771984999808,5.27431621,1923.9,1922.8,3.20775818]
[1771985000551,5.1966949,1924.4,1922.0,1.3007029]
[1771985000552,5.27431621,1923.1,1922.0,1.3007029]
[1771985000811,5.27431621,1923.1,1922.1,1.90762362]
[1771985001005,1.2376034,1923.4,1922.1,1.90762362]
[1771985001190,1.300052,1923.0,1921.8,1.90762362]
[1771985001526,1.23451726,1922.9,1921.8,1.90762362]
[1771985001891,5.27431621,1922.7,1921.5,1.3010213]
[1771985002091,1.23451726,1922.9,1921.6,1.90762362]
[1771985002312,1.300052,1923.0,1921.6,1.90762362]
[1771985003012,6.50265598,1922.8,1921.6,1.90762362]
[1771985003408,1.30025484,1922.7,1921.6,3.20855687]
[1771985003819,0.002,1922.9,1922.2,7.18193983]
[1771985003990,1.30212536,1922.9,1922.0,1.90762362]
[1771985004195,0.002,1922.9,1922.0,1.90762362]
[1771985004890,0.002,1923.0,1922.3,1.90762362]
[1771985005109,0.002,1923.0,1922.4,1.90762362]
[1771985005494,0.002,1923.0,1922.5,1.30039011]
[1771985005989,0.002,1923.0,1922.5,3.11897848]
[1771985006194,0.002,1923.0,1922.3,1.30052541]
[1771985006800,0.002,1923.0,1922.3,3.11911378]
[1771985007391,0.002,1923.0,1922.2,3.99645318]
[1771985007622,0.002,1923.0,1922.1,5.20244337]
[1771985007623,0.002,1923.0,1921.8,1.81858837]
[1771985007792,5.27631621,1923.0,1921.8,1.81858837]
[1771985009122,5.27431621,1922.7,1921.7,1.30093146]
[1771985009299,1.21134275,1922.9,1921.7,3.11951983]
[1771985009499,1.30018722,1922.8,1921.7,3.11951983]
[1771985009820,1.30018722,1922.8,1921.8,1.81858837]
[1771985010130,1.20834426,1922.7,1921.4,3.11970641]
[1771985011124,1.30018722,1922.8,1921.5,1.81858837]
[1771985011419,2.50557542,1922.8,1921.5,1.81858837]
[1771985011620,1.30018722,1922.8,1921.7,1.81858837]
[1771985011822,2.50557542,1922.8,1921.7,1.81858837]
[1771985012503,1.2024387,1922.5,1921.0,5.20639588]
[1771985012832,1.2024387,1922.5,1921.1,1.81958837]
[1771985012991,1.2024387,1922.5,1921.1,3.12091648]
[1771985013596,1.2024387,1922.5,1921.1,1.81958837]
[1771985013597,1.19947329,1922.3,1921.1,1.81958837]
[1771985013898,1.19947329,1922.3,1921.1,0.001]
[1771985014103,1.30045776,1922.4,1921.2,1.81858837]
[1771985014338,2.49697459,1922.4,1921.2,1.81858837]
[1771985015303,1.19357193,1922.3,1921.1,0.001]
[1771985015499,1.19357193,1922.3,1921.2,0.001]
[1771985015724,1.19357193,1922.1,1921.2,0.001]
[1771985016089,1.30059307,1922.2,1921.2,0.001]
[1771985016294,1.30059307,1922.2,1921.2,1.81958837]
[1771985016521,2.49120747,1922.2,1921.2,0.001]
[1771985017912,1.30059307,1922.2,1921.2,1.81958837]
[1771985018234,2.48536308,1922.2,1921.2,0.001]
[1771985018527,1.18477001,1922.1,1921.2,0.001]
[1771985019396,1.18189414,1921.9,1921.2,0.001]
[1771985019814,1.18089414,1921.7,1921.0,0.001]
[1771985021214,1.30086377,1921.8,1921.0,0.001]
[1771985021617,1.30086377,1921.8,1921.0,1.81958837]
[1771985021849,1.30066073,1922.1,1921.0,3.12093959]
[1771985022262,2.47297625,1922.1,1921.0,1.81958837]
[1771985022543,2.47297625,1922.1,1921.0,3.12098516]
[1771985025013,1.30066073,1922.1,1921.1,1.81858837]
[1771985025831,5.20237228,1922.3,1921.2,1.30127003]
[1771985026925,5.20264294,1922.4,1921.2,3.1198584]
[1771985027236,5.20264294,1922.4,1921.3,1.81858837]
[1771985027834,5.20264294,1922.4,1921.4,1.30113458]
[1771985029270,3.76600922,1922.3,1921.4,1.30113458]
[1771985029779,3.76600922,1922.3,1921.4,3.11972295]
[1771985029962,1.30059307,1922.2,1921.4,3.11972295]
[1771985030851,1.30059307,1922.2,1921.5,1.81858837]
[1771985031882,3.76600922,1922.1,1921.2,1.81958837]
[1771985032084,1.3007284,1922.0,1921.2,3.12085359]
[1771985032893,1.30045776,1922.4,1921.3,1.81858837]
[1771985033962,1.30045776,1922.4,1921.5,1.81858837]
[1771985035787,1.30032247,1922.6,1921.6,1.88722516]
[1771985035968,5.20128991,1922.7,1921.8,1.88722516]
[1771985036658,5.20128991,1922.7,1921.8,1.88188676]
[1771985037164,1.30025484,1922.7,1921.8,1.88188676]
[1771985037374,5.20291242,1922.8,1921.8,1.88188676]
[1771985037375,1.30224204,1922.8,1921.8,1.88188676]
[1771985038074,0.002,1922.8,1921.9,1.30079608]
[1771985038385,0.002,1922.8,1922.2,1.88722516]
[1771985040492,1.30211961,1922.9,1922.4,1.88722516]
[1771985040493,0.002,1922.9,1922.4,1.88722516]
[1771985040663,0.002,1922.9,1922.2,1.30057947]
[1771985040985,0.002,1922.6,1921.9,1.30073994]
[1771985041189,0.002,1922.6,1922.0,1.88722516]
[1771985042088,0.002,1922.6,1921.8,1.30081935]
[1771985042268,0.002,1922.6,1922.2,1.88722516]
[1771985042474,0.002,1922.9,1922.4,1.88722516]
[1771985043074,0.002,1922.9,1922.2,1.30054916]
[1771985043462,0.002,1922.9,1922.2,3.18777432]
[1771985044472,0.002,1922.9,1922.3,1.88722516]
[1771985045207,0.002,1922.9,1922.4,1.88722516]
[1771985045497,0.002,1923.0,1922.4,1.88722516]
[1771985046503,0.002,1923.0,1922.5,3.18761527]
[1771985046700,0.002,1923.0,1922.6,1.88722516]
[1771985047282,0.002,1923.0,1922.3,5.65323438]
[1771985047481,0.002,1923.0,1922.3,3.18770857]
[1771985047697,0.002,1923.0,1922.4,1.88722516]
[1771985048698,0.002,1923.0,1922.1,1.88722516]
[1771985049077,1.10945133,1923.0,1922.1,1.88722516]
[1771985049802,1.10945133,1923.0,1921.9,1.30079608]
[1771985050003,1.10945133,1923.0,1921.8,3.18804868]
[1771985050004,4.87082172,1922.7,1921.8,3.18804868]
[1771985050596,1.30032247,1922.6,1921.8,3.18804868]
[1771985052919,2.39726261,1922.6,1921.8,1.30082352]
[1771985053494,2.39726261,1922.6,1921.9,0.001]
[1771985054608,1.30045776,1922.4,1921.9,0.001]
[1771985054796,1.30029213,1922.7,1921.9,1.88822516]
[1771985056025,0.002,1922.9,1921.9,1.88822516]
[1771985056026,1.30212875,1922.9,1921.9,1.88822516]
[1771985056224,2.39128716,1922.9,1921.9,1.88822516]
[1771985056601,2.39128716,1922.9,1922.0,1.3007284]
[1771985057295,1.30213442,1922.9,1922.2,1.88722516]
[1771985057501,0.002,1922.9,1922.2,1.88722516]
[1771985057930,1.30212656,1922.9,1922.2,1.88722516]
[1771985058729,0.002,1922.9,1922.3,1.30052541]
[1771985058908,0.002,1922.9,1922.3,3.18775057]
[1771985059420,0.002,1923.0,1922.4,1.88722516]
[1771985059620,0.002,1923.0,1922.3,1.30052541]
[1771985060924,0.002,1923.0,1922.2,7.08957827]
[1771985061702,0.002,1923.0,1922.2,3.18781823]
[1771985063812,0.002,1923.0,1922.3,1.88722516]
[1771985064928,0.002,1923.0,1922.4,1.30045776]
[1771985065813,0.002,1922.9,1922.4,1.30045776]
[1771985066637,4.83127385,1922.7,1922.3,0.001]
[1771985066804,1.06526463,1922.6,1922.2,0.001]
[1771985067206,1.30039011,1922.5,1922.2,0.001]
[1771985070006,5.06639933,1922.5,1922.2,0.001]
[1771985070408,5.06639933,1922.5,1922.0,0.001]
[1771985070409,6.12066731,1922.5,1922.0,0.001]
[1771985071344,1.30037448,1922.6,1922.0,0.001]
[1771985071542,5.20114884,1922.7,1922.0,0.001]
[1771985072008,1.04936043,1922.6,1922.0,0.001]
[1771985072843,1.04936043,1922.4,1922.0,0.001]
[1771985074041,1.30052541,1922.3,1922.0,0.001]
[1771985074261,1.30037411,1922.6,1922.0,0.001]
[1771985075243,3.76600922,1922.1,1921.6,0.001]
[1771985076142,1.3007284,1922.0,1921.6,0.001]
[1771985076560,1.3007284,1922.0,1921.2,0.001]
[1771985076561,4.80452957,1921.9,1921.2,0.001]
[1771985077583,4.80219735,1921.5,1921.0,0.001]
[1771985078115,3.76600922,1921.7,1921.0,0.001]
[1771985078427,1.30099916,1921.6,1921.0,0.001]
[1771985079047,2.33240271,1921.6,1921.1,0.001]
[1771985079253,1.30099916,1921.6,1921.1,0.001]
[1771985079720,10.00062502,1921.9,1921.1,0.001]
[1771985079721,1.30092982,1921.8,1921.1,0.001]
[1771985080125,1.02898274,1921.7,1921.1,0.001]
[1771985080327,1.30099916,1921.6,1921.1,0.001]
[1771985080942,5.20355033,1921.8,1921.1,0.001]
[1771985081668,1.02659284,1921.7,1921.1,0.001]
[1771985082253,1.30099916,1921.6,1921.1,0.001]
[1771985083172,3.76600922,1921.9,1921.1,0.001]
[1771985083371,1.02178894,1922.0,1921.1,1.84724156]
[1771985084379,2.3201922,1921.9,1921.1,1.84724156]
[1771985084580,6.29327618,1921.8,1921.1,0.001]
[1771985085095,6.29327618,1921.8,1921.1,1.30232376]
[1771985085284,6.29327618,1921.8,1921.1,0.001]
[1771985085487,1.30079608,1921.9,1921.2,1.84624156]
[1771985085688,1.30052541,1922.3,1921.2,1.84624156]
[1771985086284,10.47557743,1922.5,1921.3,2.27667301]
[1771985086488,1.01462485,1922.4,1921.5,1.84624156]
[1771985086652,6.21632222,1922.5,1921.3,1.84624156]
[1771985086857,6.21632222,1922.5,1921.3,2.27667301]
[1771985087555,1.01223976,1922.4,1921.3,1.84624156]
[1771985087883,1.01223976,1922.2,1921.3,1.84624156]
[1771985088465,1.30066073,1922.1,1921.3,1.84624156]
[1771985088893,1.00986531,1922.0,1921.3,1.84624156]
[1771985089089,1.00986531,1922.0,1921.1,3.14857839]
[1771985089898,1.00986531,1922.0,1921.2,1.84624156]
[1771985090097,1.30066073,1922.1,1921.2,1.84624156]
[1771985090611,5.20264294,1922.2,1921.3,1.84624156]
[1771985090817,6.20778126,1922.2,1921.3,1.84624156]
[1771985091216,0.002,1921.9,1921.3,1.84624156]
[1771985092108,0.002,1921.9,1921.2,1.30126663]
[1771985092628,1.30279608,1921.9,1921.2,1.84624156]
[1771985094715,0.002,1921.9,1921.4,1.84624156]
[1771985096642,1.30259307,1922.2,1921.5,1.82391036]
[1771985096643,0.002,1922.2,1921.5,1.82391036]
[1771985096814,0.004,1922.2,1922.1,0.004]
[1771985097012,0.004,1922.2,1921.7,1.82391036]
[1771985098904,0.004,1922.2,1921.8,1.82391036]
[1771985099436,1.30034887,1922.6,1921.5,1.82391036]
[1771985099437,0.98419672,1922.3,1921.5,1.82391036]
[1771985099638,0.98419672,1922.3,1921.5,3.12497664]
[1771985100355,0.98588912,1922.2,1921.3,1.82391036]
[1771985100638,0.98188912,1922.2,1921.3,1.82391036]
[1771985100810,1.30066073,1922.1,1921.4,1.82391036]
[1771985101554,5.27388006,1921.9,1921.1,1.82491036]
[1771985101757,0.97958878,1921.5,1920.9,0.001]
[1771985102061,0.97630082,1921.2,1920.6,0.001]
[1771985102357,10.54776012,1921.5,1920.6,0.001]
[1771985102358,0.003,1921.4,1920.6,0.001]
[1771985102503,6.25018088,1921.5,1920.6,0.001]
[1771985102699,0.97930082,1921.4,1920.6,1.30267309]
[1771985102903,1.30120231,1921.3,1920.6,0.001]
[1771985103104,0.003,1921.3,1920.6,2.22776348]
[1771985103350,1.30099916,1921.6,1921.3,0.001]
[1771985103509,5.27388006,1922.1,1921.3,1.82491036]
[1771985103510,5.20283935,1922.1,1921.3,1.82491036]
[1771985103831,0.003,1922.0,1921.3,1.82491036]
[1771985104048,0.003,1921.9,1921.3,1.82491036]
[1771985104232,0.003,1922.0,1921.3,1.82491036]
[1771985104854,0.003,1921.9,1921.3,3.12610415]
[1771985105050,0.003,1922.0,1921.3,3.12610415]
[1771985105426,0.96959226,1921.8,1921.3,0.001]
[1771985105625,0.003,1922.0,1921.3,0.001]
[1771985105855,2.27025299,1922.1,1921.3,0.001]
[1771985106038,0.003,1922.0,1921.3,0.001]
[1771985106427,0.003,1921.9,1921.3,0.001]
[1771985106626,0.97032339,1922.0,1921.3,0.001]
[1771985106833,12.59120345,1921.9,1921.3,0.001]
[1771985107052,0.96406111,1921.7,1921.0,0.001]
[1771985107255,5.27388006,1921.6,1921.0,0.001]
[1771985107958,0.002,1921.5,1921.0,0.001]
[1771985108254,0.96380355,1921.5,1921.0,0.001]
[1771985108752,5.27388006,1921.3,1920.6,0.001]
[1771985108954,1.30127003,1921.2,1920.6,0.001]
[1771985110458,0.002,1921.1,1920.6,0.001]
[1771985110759,0.002,1921.2,1920.6,1.82491036]
[1771985111263,5.20416541,1921.6,1920.7,1.82391036]
[1771985111464,0.002,1921.5,1920.7,1.82391036]
[1771985111655,1.30086377,1921.8,1920.7,1.82391036]
[1771985111835,0.002,1921.7,1920.7,1.82391036]
[1771985113063,0.002,1921.7,1920.8,1.30154102]
[1771985113256,0.002,1921.7,1920.9,1.82391036]
[1771985113653,0.002,1921.6,1920.9,1.82391036]
[1771985113837,0.002,1921.7,1920.9,1.82391036]
[1771985114441,0.002,1921.6,1920.9,1.82391036]
[1771985114669,0.002,1921.7,1920.9,1.82391036]
[1771985115044,0.002,1921.6,1920.9,1.82391036]
[1771985115255,0.9462687,1921.6,1920.6,1.82491036]
[1771985115564,5.27588006,1921.7,1920.6,3.12657582]
[1771985115565,0.9482687,1921.5,1920.6,3.12657582]
[1771985115862,0.9462687,1921.5,1920.6,1.82491036]
[1771985116239,0.9462687,1921.5,1921.0,0.001]
[1771985117352,1.30113458,1921.4,1921.0,0.001]
[1771985118771,0.002,1921.3,1921.0,0.001]
[1771985118985,1.30113458,1921.4,1921.0,0.001]
[1771985119169,0.002,1921.3,1921.0,0.001]
[1771985119562,0.002,1921.6,1921.0,1.82491036]
[1771985119858,1.30283399,1921.9,1921.1,1.82391036]
[1771985120063,0.002,1921.8,1921.1,1.82391036]
[1771985120487,1.30280138,1921.9,1921.1,1.82391036]
[1771985120790,0.002,1921.8,1921.1,1.82391036]
[1771985121487,0.002,1921.8,1921.2,1.82391036]
[1771985122994,0.002,1921.7,1921.2,1.82391036]
[1771985123287,0.002,1921.9,1921.2,1.82391036]
[1771985123288,0.002,1921.8,1921.2,1.82391036]
[1771985123491,0.002,1921.8,1921.3,1.30120231]
[1771985123663,0.002,1921.8,1921.4,1.82391036]
[1771985123863,0.002,1921.7,1921.2,1.82391036]
[1771985124185,0.002,1921.8,1921.2,1.82391036]
[1771985125292,0.002,1921.7,1921.2,1.82391036]
[1771985125466,0.002,1921.9,1921.2,1.82391036]
[1771985125667,0.002,1921.9,1921.3,2.9740337]
[1771985126394,0.002,1921.9,1921.4,1.7242553]
[1771985127717,0.004,1921.9,1921.3,1.7242553]
[1771985127916,0.002,1921.9,1921.6,1.7242553]
[1771985128408,0.002,1922.2,1921.8,1.7242553]
[1771985128925,0.002,1922.2,1921.9,1.7242553]
[1771985129809,0.002,1922.2,1922.1,1.7242553]
[1771985131214,0.002,1922.3,1922.1,1.7242553]
[1771985131508,0.002,1922.3,1922.2,1.7242553]
[1771985131917,0.002,1922.3,1922.2,3.02484837]
[1771985132513,0.002,1922.5,1922.3,1.7242553]
[1771985133599,0.002,1922.9,1922.3,1.7242553]
[1771985134306,0.002,1922.9,1922.3,3.02478069]
[1771985135137,0.91136307,1922.9,1922.0,1.7242553]
[1771985135334,0.91136307,1922.9,1922.0,1.30069676]
[1771985135541,0.91136307,1922.9,1922.1,1.7242553]
[1771985136135,0.91136307,1922.9,1922.4,1.7242553]
[1771985136136,0.002,1922.9,1922.4,1.7242553]
[1771985136334,0.002,1923.1,1922.8,1.7242553]
[1771985136644,0.002,1923.1,1922.6,1.7242553]
[1771985138111,0.002,1923.1,1922.7,1.30025484]
[1771985139141,0.002,1923.1,1922.8,1.7242553]
[1771985139638,0.002,1923.2,1922.8,1.7242553]
[1771985140344,0.002,1923.2,1922.9,1.7242553]
[1771985141557,0.002,1923.4,1923.1,1.7242553]
[1771985143036,0.002,1923.4,1923.2,1.7242553]
[1771985143862,0.002,1923.3,1923.2,1.7242553]
[1771985144332,0.002,1923.3,1922.9,1.7242553]
[1771985147562,0.002,1923.3,1922.8,1.30018035]
[1771985147563,0.002,1923.3,1922.7,1.30120996]
[1771985147762,0.002,1923.3,1922.7,0.001]
[1771985148866,0.88661911,1923.3,1922.7,0.001]
[1771985150860,1.2999168,1923.2,1922.7,0.001]
[1771985152156,0.87647124,1923.1,1922.7,0.001]
[1771985152356,0.87647124,1923.0,1922.5,0.001]
[1771985152988,2.17357342,1922.9,1922.5,0.001]
[1771985153797,0.87345381,1922.8,1922.5,0.001]
[1771985154096,0.87147065,1922.6,1921.6,1.7242553]
[1771985154398,0.87147065,1922.4,1921.6,1.7242553]
[1771985154571,0.87147065,1922.4,1921.4,5.20449655]
[1771985154572,0.87147065,1922.4,1921.4,1.7242553]
[1771985154987,1.30052541,1922.3,1921.5,3.02532217]
[1771985155487,1.30052541,1922.3,1921.5,1.7242553]
[1771985155664,2.16803126,1922.3,1921.5,1.7242553]
[1771985157205,2.16803126,1922.3,1921.5,3.02528735]
[1771985157389,2.16803126,1922.3,1921.5,1.7242553]
[1771985157590,2.16803126,1922.3,1921.3,0.001]
[1771985157591,0.8654315,1922.2,1921.3,0.001]
[1771985157905,0.8654315,1922.2,1921.5,1.74923338]
[1771985158807,1.30052541,1922.3,1921.5,1.74923338]
[1771985159910,2.15994695,1922.3,1921.5,1.74923338]
[1771985160111,0.85942154,1922.2,1921.3,0.001]
[1771985160327,0.85942154,1922.2,1921.3,3.05143055]
[1771985160522,0.85942154,1922.2,1921.4,1.74923338]
[1771985161179,0.85942154,1922.2,1921.3,0.001]
[1771985161383,0.85744346,1922.0,1921.2,0.001]
[1771985161579,0.85644346,1921.6,1921.0,0.001]
[1771985162018,0.85446505,1921.2,1920.7,0.001]
[1771985162220,0.85446505,1921.2,1920.6,0.001]
[1771985163496,1.30133777,1921.1,1920.6,0.001]
[1771985163809,2.1538864,1921.1,1920.6,0.001]
[1771985164235,5.20488863,1921.3,1920.6,1.75023338]
[1771985164645,6.05557745,1921.3,1920.6,0.001]
[1771985166831,4.60629324,1921.7,1920.6,1.75023338]
[1771985167215,6.35,1921.6,1920.9,1.74923338]
[1771985167717,6.35,1921.6,1920.6,0.001]
[1771985167718,6.35,1921.6,1920.6,1.75023338]
[1771985167908,0.84286515,1921.6,1920.6,1.75023338]
[1771985168113,0.84286515,1921.6,1920.7,3.05184216]
[1771985169133,0.84286515,1921.6,1920.8,1.74923338]
[1771985169350,0.84094395,1921.8,1920.8,1.74923338]
[1771985169732,5.20304736,1922.0,1921.1,1.74923338]
[1771985169961,5.20304736,1922.0,1921.3,1.74923338]
[1771985170562,4.59853116,1921.9,1921.0,1.74923338]
[1771985170737,4.59853116,1921.7,1920.8,1.30152313]
[1771985171052,4.59853116,1921.7,1920.7,3.05179725]
[1771985171449,4.59853116,1921.7,1920.8,1.74923338]
[1771985172056,1.30099916,1921.6,1920.8,3.05071443]
[1771985173029,1.30099916,1921.6,1920.8,1.74923338]
[1771985174332,4.59085009,1921.5,1920.7,0.001]
[1771985176462,1.30113458,1921.4,1920.7,0.001]
[1771985178760,1.30113458,1921.4,1920.7,1.75023338]
[1771985180572,5.20414799,1921.6,1920.7,1.75023338]
[1771985180780,1.30099916,1921.7,1920.9,1.30147326]
[1771985180945,1.30099916,1921.7,1921.0,1.74923338]
[1771985181153,1.30299916,1921.7,1921.0,1.74923338]
[1771985182954,0.002,1921.7,1921.0,1.74923338]
[1771985183256,0.002,1921.8,1921.3,1.74923338]
[1771985185185,0.002,1921.8,1921.5,1.74923338]
[1771985186164,0.002,1922.0,1921.5,1.74923338]
[1771985186355,0.002,1922.0,1921.7,1.60082798]
[1771985187171,3.75952399,1922.7,1921.9,1.60082798]
[1771985187172,1.30030115,1922.7,1921.9,1.60082798]
[1771985187387,0.002,1922.6,1921.9,1.60082798]
[1771985187586,0.002,1922.6,1922.1,1.60082798]
[1771985189271,0.002,1922.6,1922.2,1.60082798]
[1771985189515,0.002,1922.9,1922.2,1.60082798]
[1771985189671,0.002,1922.8,1922.2,1.60082798]
[1771985190070,0.002,1922.9,1921.9,1.60082798]
[1771985190299,0.002,1922.8,1922.0,1.60082798]
[1771985190498,4.56297905,1922.5,1921.7,1.60082798]
[1771985191000,0.80360491,1922.4,1921.4,2.90194674]
[1771985191193,5.86165431,1922.3,1921.4,1.60082798]
[1771985191395,2.10213032,1922.3,1921.4,2.90195801]
[1771985191598,0.002,1922.2,1921.4,2.9019434]
[1771985191925,1.30052541,1922.3,1921.6,1.60082798]
[1771985192075,0.002,1922.2,1921.6,1.60082798]
[1771985192575,0.002,1922.1,1921.6,1.60082798]
[1771985192779,1.30049473,1922.4,1921.6,1.60082798]
[1771985193118,0.002,1922.5,1922.0,1.60082798]
[1771985193272,0.002,1922.5,1922.1,2.90148871]
[1771985194329,0.002,1922.5,1922.1,1.60082798]
[1771985194747,0.002,1922.5,1921.5,10.5645438]
[1771985194748,0.002,1922.4,1921.5,10.5645438]
[1771985194938,0.002,1922.4,1921.6,2.90179088]
[1771985195343,0.002,1922.6,1921.9,5.36035197]
[1771985195551,0.002,1922.6,1922.0,1.60082798]
[1771985195552,0.002,1922.5,1922.0,1.60082798]
[1771985195754,0.002,1922.7,1922.0,1.60082798]
[1771985195755,0.002,1922.7,1922.4,1.60082798]
[1771985195929,0.002,1922.9,1922.6,1.60082798]
[1771985196127,1e-08,1923.0,1922.6,1.60082798]
[1771985197629,1e-08,1923.0,1922.7,1.30025484]
[1771985198028,5.01233423,1923.4,1922.7,1.30025484]
[1771985198235,5.36344327,1923.3,1922.4,1.30041154]
[1771985198444,1.60391928,1923.2,1922.3,2.90129882]
[1771985199433,8.82082961,1923.5,1923.1,1.60082798]
[1771985199434,0.002,1923.5,1923.1,1.60082798]
[1771985199635,0.002,1923.7,1923.4,1.29978163]
[1771985199838,1.29913585,1924.4,1923.6,3.75952399]
[1771985200059,1.29913585,1924.4,1923.3,5.19912654]
[1771985200060,1.60391928,1924.3,1923.3,1.29983602]
[1771985200260,1.60391928,1924.3,1923.2,6.66021621]
[1771985200763,1.60391928,1923.9,1922.9,1.60082798]
[1771985200967,5.36344327,1924.2,1923.1,1.60082798]
[1771985201163,1.60391928,1924.2,1923.1,1.60082798]
[1771985201738,1.29930876,1924.1,1923.2,1.2999168]
[1771985202657,1.29921464,1924.3,1923.4,3.75952399]
[1771985202979,1.29910621,1924.4,1923.5,1.60082798]
[1771985203347,2.90302549,1924.4,1923.5,1.60082798]
[1771985203548,1.60391928,1924.1,1923.1,1.2999349]
[1771985203745,2.90329557,1924.0,1923.0,6.80090683]
[1771985203941,2.90329557,1924.0,1923.1,1.60082798]
[1771985204146,1.29936243,1924.1,1923.1,1.60082798]